bitfinex-derivatives/quotes_BTCF0:USTF0_20250416
["timestamp","ask_amount","ask_price","bid_price","bid_amount"]
[1744769917756,0.119216,83888.0,83887.0,0.13341772]
[1744769918668,0.119216,83888.0,83887.0,0.16641772]
[1744769921667,0.119216,83888.0,83887.0,0.04720022]
[1744769921865,0.119216,83888.0,83887.0,0.01420022]
[1744769922572,0.119216,83888.0,83887.0,0.00512591]
[1744769922762,0.1192232,83883.0,83882.0,0.00017877]
[1744769922958,0.4800232,83883.0,83882.0,0.00017877]
[1744769923568,0.5430232,83883.0,83882.0,0.00017877]
[1744769923969,0.5430232,83883.0,83882.0,0.00117877]
[1744769925365,0.55516196,83883.0,83882.0,0.00017877]
[1744769926072,0.1192359,83875.0,83874.0,0.1192355]
[1744769926474,0.1819359,83875.0,83874.0,0.1192355]
[1744769927575,0.1819359,83875.0,83874.0,0.1495355]
[1744769927775,0.1819359,83875.0,83874.0,0.1816355]
[1744769929572,0.1819359,83875.0,83874.0,0.19056044]
[1744769929767,0.1511359,83875.0,83874.0,0.19056044]
[1744769930976,0.1511359,83875.0,83874.0,0.07132494]
[1744769931165,0.1835359,83875.0,83874.0,0.19056084]
[1744769931371,0.1835359,83875.0,83874.0,0.0303]
[1744769932173,0.1835359,83875.0,83874.0,0.1495359]
[1744769932970,0.1835359,83875.0,83874.0,0.1815359]
[1744769937068,0.1511359,83875.0,83874.0,0.1815359]
[1744769938973,0.1827359,83875.0,83874.0,0.1815359]
[1744769939377,0.1192459,83867.0,83862.0,0.0596264]
[1744769939675,0.1192459,83867.0,83866.0,0.03237877]
[1744769939873,0.1192459,83867.0,83866.0,0.15162607]
[1744769940380,0.1515459,83867.0,83866.0,0.15162607]
[1744769940576,0.1515459,83867.0,83866.0,0.15262607]
[1744769941479,0.1515459,83867.0,83866.0,0.15462607]
[1744769941671,0.1515459,83867.0,83866.0,0.16368793]
[1744769944879,0.1515459,83867.0,83866.0,0.04444063]
[1744769945473,0.1515459,83867.0,83866.0,0.00317877]
[1744769945978,0.1815459,83867.0,83866.0,0.00317877]
[1744769947582,0.0623,83867.0,83845.0,0.0596386]
[1744769947784,0.1192687,83851.0,83850.0,0.1192689]
[1744769947970,0.1192687,83851.0,83850.0,0.16051052]
[1744769948171,0.1192687,83851.0,83850.0,0.04124162]
[1744769948574,0.1833687,83851.0,83850.0,0.19101172]
[1744769948978,0.1833687,83851.0,83850.0,0.19801172]
[1744769949477,0.1524687,83851.0,83850.0,0.0696]
[1744769949677,0.1524687,83851.0,83850.0,0.1888701]
[1744769949880,0.1833687,83851.0,83850.0,0.1888701]
[1744769950275,0.1833687,83851.0,83850.0,0.0696]
[1744769951188,0.1833687,83851.0,83850.0,0.0736]
[1744769952080,0.1833687,83851.0,83850.0,0.0415]
[1744769952277,0.1833687,83851.0,83850.0,0.011]
[1744769952484,0.11928,83843.0,83842.0,0.00017888]
[1744769952681,0.48008,83843.0,83842.0,0.00017888]
[1744769953085,0.48008,83843.0,83835.0,0.00512909]
[1744769953086,0.11929,83836.0,83835.0,0.00512909]
[1744769953383,0.11929,83836.0,83826.0,0.04060891]
[1744769953384,0.1193028,83827.0,83826.0,0.04060891]
[1744769953581,0.1193028,83827.0,83826.0,0.0316]
[1744769953983,0.1193142,83819.0,83818.0,0.00025888]
[1744769954177,0.1193142,83819.0,83818.0,0.00017888]
[1744769954390,0.1193142,83819.0,83818.0,0.00025888]
[1744769954585,0.1193142,83819.0,83818.0,0.00017888]
[1744769954792,0.1193142,83819.0,83818.0,0.00025888]
[1744769955181,0.1193142,83819.0,83818.0,0.00625888]
[1744769955381,0.0304,83821.0,83818.0,0.01523466]
[1744769955577,0.17907081,83826.0,83825.0,0.178957]
[1744769955982,0.20947081,83826.0,83825.0,0.0596528]
[1744769956184,0.1193142,83819.0,83818.0,0.13440551]
[1744769956391,0.1193142,83819.0,83818.0,0.12557328]
[1744769956581,0.1193142,83819.0,83818.0,0.12549328]
[1744769956778,0.1193142,83819.0,83818.0,0.13057328]
[1744769957185,0.1193142,83819.0,83818.0,0.16177328]
[1744769957600,0.1520142,83819.0,83818.0,0.01017888]
[1744769957781,0.1520142,83819.0,83818.0,0.04335888]
[1744769957980,0.1520142,83819.0,83818.0,0.16267448]
[1744769958184,0.1520142,83819.0,83818.0,0.15667448]
[1744769958494,0.1520142,83819.0,83818.0,0.18787448]
[1744769958889,0.1520142,83819.0,83818.0,0.19387448]
[1744769959694,0.1520142,83819.0,83818.0,0.04335888]
[1744769959993,0.1520142,83819.0,83818.0,0.01025888]
[1744769960288,0.1193213,83814.0,83813.0,0.0001458]
[1744769960687,0.119327,83810.0,83809.0,0.12445858]
[1744769961400,0.119327,83810.0,83809.0,0.12456658]
[1744769961585,0.180927,83810.0,83809.0,0.12445858]
[1744769961991,0.180927,83810.0,83809.0,0.13340956]
[1744769962698,0.180927,83810.0,83809.0,0.14040956]
[1744769963094,0.180927,83810.0,83809.0,0.13940956]
[1744769963487,0.180927,83810.0,83809.0,0.16940956]
[1744769963690,0.180927,83810.0,83809.0,0.17240956]
[1744769966301,0.180927,83810.0,83809.0,0.01421068]
[1744769966495,0.180927,83810.0,83690.0,2.38643058]
[1744769966496,0.0596684,83804.0,83801.0,0.00900417]
[1744769966697,0.0596716,83799.0,83785.0,0.0596792]
[1744769966996,0.1193612,83786.0,83785.0,0.1790361]
[1744769967395,0.1193612,83786.0,83785.0,0.1791161]
[1744769967793,0.1831612,83786.0,83785.0,0.1791161]
[1744769968194,0.1831612,83786.0,83785.0,0.1831161]
[1744769968504,0.1831612,83786.0,83785.0,0.2144161]
[1744769968695,0.1831612,83786.0,83785.0,0.2104161]
[1744769968894,0.1831612,83786.0,83785.0,0.2144161]
[1744769969498,0.1193535,83793.0,83790.0,0.1193526]
[1744769969699,0.2387061,83793.0,83792.0,0.1193526]
[1744769969893,0.2706061,83793.0,83792.0,0.1193526]
[1744769970094,0.2706061,83793.0,83792.0,0.1825526]
[1744769971005,0.2706061,83793.0,83792.0,0.19350949]
[1744769971195,0.3608,83795.0,83793.0,0.1193512]
[1744769971395,0.4801488,83795.0,83793.0,0.1193512]
[1744769971596,0.4801488,83795.0,83793.0,0.1811512]
[1744769972397,0.11952879,83794.0,83793.0,0.1811512]
[1744769972594,0.14982879,83794.0,83793.0,0.1811512]
[1744769972996,0.00017899,83794.0,83793.0,0.1821512]
[1744769973195,0.00017899,83794.0,83793.0,0.3422312]
[1744769973401,0.00017899,83794.0,83793.0,0.1822312]
[1744769975008,0.00017899,83794.0,83793.0,0.1821512]
[1744769975305,0.00017899,83794.0,83793.0,0.19310809]
[1744769980606,0.11952879,83794.0,83793.0,0.19318809]
[1744769981102,0.11952879,83794.0,83793.0,0.16238809]
[1744769981701,0.00017899,83794.0,83793.0,0.16238809]
[1744769982110,0.11952879,83794.0,83793.0,0.16238809]
[1744769984409,0.00017899,83794.0,83793.0,0.16238809]
[1744769984913,0.11952879,83794.0,83793.0,0.16238809]
[1744769986210,0.48032879,83794.0,83793.0,0.13138809]
[1744769986613,0.48032879,83794.0,83793.0,0.13130809]
[1744769986912,0.48032879,83794.0,83793.0,0.13138809]
[1744769987113,0.48032879,83794.0,83793.0,0.01195689]
[1744769987406,0.48032879,83794.0,83793.0,0.13138809]
[1744769988712,0.48032879,83794.0,83793.0,0.01203689]
[1744769989104,0.48032879,83794.0,83793.0,0.01195689]
[1744769989305,0.48032879,83794.0,83793.0,0.01203689]
[1744769990313,0.119364,83784.0,83783.0,0.12449778]
[1744769990518,0.480164,83784.0,83783.0,0.00513228]
[1744769991011,0.1193783,83774.0,83773.0,0.18209934]
[1744769991215,0.1193868,83769.0,83768.0,0.1790759]
[1744769991510,0.1193868,83768.0,83767.0,0.24279912]
[1744769991700,0.1511868,83768.0,83767.0,0.36218742]
[1744769992101,0.1193997,83759.0,83758.0,0.3034989]
[1744769992311,0.0597047,83753.0,83752.0,0.1792587]
[1744769992612,0.0597047,83753.0,83752.0,0.1791129]
[1744769992806,0.0597047,83753.0,83750.0,0.42390469]
[1744769992807,0.1194111,83751.0,83750.0,0.42390469]
[1744769993006,0.4802111,83751.0,83750.0,0.42390469]
[1744769993409,0.4802111,83751.0,83750.0,0.42398469]
[1744769994208,0.4802111,83751.0,83750.0,0.42998469]
[1744769994515,0.4802111,83751.0,83750.0,0.065786]
[1744769994811,0.4802111,83751.0,83750.0,0.063786]
[1744769995216,0.4802111,83751.0,83750.0,0.066786]
[1744769995720,0.3608,83751.0,83750.0,0.066786]
[1744769996416,0.4802111,83751.0,83750.0,0.128286]
[1744769999712,0.3608,83751.0,83750.0,0.128286]
[1744769999921,0.0321,83753.0,83752.0,0.1194096]
[1744770000520,0.0001791,83759.0,83758.0,0.1194011]
[1744770000726,0.0001791,83759.0,83758.0,0.1494011]
[1744770000913,0.0316,83772.0,83771.0,0.1193826]
[1744770001321,0.3608,83787.0,83785.0,0.1193626]
[1744770001519,0.0323,83787.0,83785.0,0.1193626]
[1744770002322,0.0001791,83794.0,83785.0,0.1193626]
[1744770002514,0.0918756,83793.0,83785.0,0.1499626]
[1744770002715,0.1220756,83793.0,83785.0,0.1816626]
[1744770003124,0.2414277,83793.0,83785.0,0.1816626]
[1744770003320,0.0596765,83792.0,83785.0,0.1816626]
[1744770003622,0.1193564,83790.0,83785.0,0.1816626]
[1744770004026,0.0302,83789.0,83785.0,0.1816626]
[1744770004324,0.1253612,83786.0,83785.0,0.1193626]
[1744770005014,0.1283612,83786.0,83785.0,0.1193626]
[1744770005723,0.1253612,83786.0,83785.0,0.1193626]
[1744770006114,0.006,83786.0,83785.0,0.1193626]
[1744770007019,0.1253612,83786.0,83785.0,0.1193626]
[1744770007219,0.006,83786.0,83785.0,0.1193626]
[1744770007420,0.1253612,83786.0,83785.0,0.1193626]
[1744770007915,0.006,83786.0,83785.0,0.1193626]
[1744770008316,0.006,83786.0,83785.0,0.1831626]
[1744770018225,0.006,83786.0,83785.0,0.1501626]
[1744770018427,0.1253612,83786.0,83785.0,0.1501626]
[1744770018737,0.119364,83784.0,83783.0,0.0596827]
[1744770019325,0.184564,83784.0,83783.0,0.0597627]
[1744770020325,0.185564,83784.0,83783.0,0.0607627]
[1744770021435,0.187564,83784.0,83783.0,0.0597627]
[1744770021733,0.1193726,83778.0,83777.0,0.0001791]
[1744770021934,0.4801726,83778.0,83777.0,0.1195531]
[1744770022135,0.0596961,83765.0,83758.0,0.2387912]
[1744770022339,0.0596961,83765.0,83760.0,0.179091]
[1744770022340,0.1790987,83761.0,83760.0,0.179091]
[1744770023540,0.1790987,83761.0,83760.0,0.179171]
[1744770024234,0.1790987,83761.0,83760.0,0.180171]
[1744770025441,0.1790987,83761.0,83760.0,0.00108]
[1744770025637,0.1790987,83761.0,83760.0,0.1203982]
[1744770025838,0.1790987,83761.0,83760.0,0.1204782]
[1744770027237,0.0001791,83769.0,83765.0,0.0596952]
[1744770027432,0.0596817,83785.0,83782.0,0.119364]
[1744770027638,0.2421455,83785.0,83782.0,0.1790467]
[1744770027834,0.0596833,83783.0,83782.0,0.2387294]
[1744770028742,0.0596833,83783.0,83782.0,0.2397294]
[1744770029145,0.0918833,83783.0,83782.0,0.2387294]
[1744770029442,0.0988833,83783.0,83782.0,0.2387294]
[1744770029841,0.1575655,83783.0,83782.0,0.2387294]
[1744770030038,0.1605655,83783.0,83782.0,0.3005294]
[1744770031044,0.1595655,83783.0,83782.0,0.3005294]
[1744770031345,0.1535655,83783.0,83782.0,0.3005294]
[1744770031539,0.1595655,83783.0,83782.0,0.3005294]
[1744770031844,0.1595655,83783.0,83782.0,0.2700294]
[1744770032043,0.1595655,83783.0,83782.0,0.2387294]
[1744770033547,0.1595655,83783.0,83782.0,0.0596827]
[1744770033843,0.1193769,83776.0,83775.0,0.119376]
[1744770034239,0.1813769,83776.0,83775.0,0.119376]
[1744770035147,0.1843769,83776.0,83775.0,0.119376]
[1744770036248,0.1853769,83776.0,83775.0,0.119376]
[1744770038948,0.1193769,83775.0,83774.0,0.1195574]
[1744770039442,0.1826769,83775.0,83774.0,0.1196374]
[1744770039646,0.1826769,83775.0,83774.0,0.0001791]
[1744770039843,0.1826769,83775.0,83774.0,0.1196374]
[1744770040244,0.1826769,83775.0,83774.0,0.1195574]
[1744770040443,0.1826769,83775.0,83774.0,0.1196374]
[1744770041640,0.1856769,83775.0,83774.0,0.1196374]
[1744770042548,0.1561769,83775.0,83774.0,0.1196374]
[1744770042744,0.1561769,83775.0,83774.0,0.1501374]
[1744770043145,0.1571769,83775.0,83774.0,0.1196374]
[1744770047058,0.1571769,83775.0,83774.0,0.1519374]
[1744770047865,0.1571769,83775.0,83774.0,0.1196374]
[1744770048553,0.1571769,83775.0,83774.0,0.1503374]
[1744770048854,0.1571769,83775.0,83774.0,0.1821374]
[1744770049657,0.1571769,83775.0,83774.0,0.1196374]
[1744770051048,0.1571769,83775.0,83774.0,0.1195574]
[1744770051449,0.1571769,83775.0,83774.0,0.1196374]
[1744770053056,0.1571769,83775.0,83774.0,0.1505374]
[1744770058155,0.1571769,83775.0,83774.0,0.1196374]
[1744770058560,0.1571769,83775.0,83774.0,0.1195574]
[1744770058759,0.1874769,83775.0,83774.0,0.1196374]
[1744770060359,0.1874769,83775.0,83774.0,0.0002591]
[1744770060552,0.1193911,83765.0,83745.0,0.3608]
[1744770060758,0.1194054,83756.0,83755.0,0.0597011]
[1744770061358,0.1194054,83756.0,83755.0,0.0899011]
[1744770061563,0.1826054,83756.0,83755.0,0.0899011]
[1744770062060,0.0329,83756.0,83755.0,0.0899011]
[1744770062262,0.0329,83756.0,83755.0,0.1251011]
[1744770062865,0.0329,83756.0,83755.0,0.1271011]
[1744770063365,0.1523039,83756.0,83755.0,0.1271011]
[1744770064664,0.0329,83756.0,83755.0,0.1271011]
[1744770065767,0.0329,83756.0,83755.0,0.0939011]
[1744770065969,0.0329,83756.0,83755.0,0.1247011]
[1744770067861,0.0654,83756.0,83755.0,0.1247011]
[1744770068170,0.1848039,83756.0,83755.0,0.0939011]
[1744770068567,0.1848039,83756.0,83755.0,0.0637011]
[1744770068965,0.1848039,83756.0,83755.0,0.0637811]
[1744770069977,0.1848039,83756.0,83755.0,0.00408]
[1744770070175,0.1848039,83756.0,83755.0,0.004]
[1744770070372,0.1848039,83756.0,83755.0,0.1234854]
[1744770076387,0.1848039,83756.0,83755.0,0.00408]
[1744770076883,0.1194139,83749.0,83748.0,0.12832347]
[1744770077082,0.1194139,83749.0,83748.0,0.12821547]
[1744770077286,0.1194139,83749.0,83748.0,0.12829547]
[1744770077484,0.1194139,83749.0,83748.0,0.12821547]
[1744770077699,0.5416139,83749.0,83748.0,0.12829547]
[1744770078082,0.5416139,83749.0,83748.0,0.13229547]
[1744770078280,0.5416139,83749.0,83748.0,0.13629547]
[1744770079187,0.5416139,83749.0,83748.0,0.13529547]
[1744770079584,0.55338354,83749.0,83748.0,0.01580017]
[1744770079781,0.5416139,83749.0,83748.0,0.1224153]
[1744770079991,0.5416139,83749.0,83748.0,0.1254153]
[1744770080382,0.5416139,83749.0,83748.0,0.1254953]
[1744770081191,0.1194225,83743.0,83742.0,0.1791339]
[1744770081785,0.1194225,83743.0,83742.0,0.1880989]
[1744770081990,0.1841225,83743.0,83742.0,8e-05]
[1744770082291,0.1791501,83737.0,83736.0,0.1194239]
[1744770082491,0.1791501,83737.0,83735.0,0.1194338]
[1744770082492,0.1194367,83733.0,83732.0,0.000108]
[1744770082681,0.1194367,83733.0,83732.0,0.1194382]
[1744770082887,0.1841367,83733.0,83732.0,0.1195182]
[1744770083696,0.1841367,83733.0,83732.0,0.1215182]
[1744770085396,0.1841367,83733.0,83732.0,0.1235182]
[1744770085697,0.1841367,83733.0,83732.0,0.13260956]
[1744770089282,0.1841367,83733.0,83732.0,0.01317136]
[1744770090099,0.1841367,83733.0,83732.0,0.13260956]
[1744770092098,0.1841367,83733.0,83732.0,0.1235182]
[1744770092597,0.5449367,83733.0,83732.0,0.1235182]
[1744770096997,0.5449367,83733.0,83732.0,0.1537182]
[1744770097697,0.5131367,83733.0,83732.0,0.1537182]
[1744770097902,0.3608,83758.0,83744.0,0.119421]
[1744770098199,0.3608,83758.0,83757.0,0.1194025]
[1744770098501,0.0597019,83757.0,83750.0,0.0597059]
[1744770098708,0.0597019,83757.0,83754.0,0.0899033]
[1744770098709,0.1194054,83755.0,83754.0,0.0899033]
[1744770099190,0.1830054,83755.0,83754.0,0.0899033]
[1744770099391,0.1830054,83755.0,83754.0,0.0899833]
[1744770100203,0.1880054,83755.0,83754.0,0.0899833]
[1744770101397,0.1890054,83755.0,83754.0,0.0899833]
[1744770104206,0.5498054,83755.0,83754.0,0.0899833]
[1744770105803,0.5498054,83755.0,83754.0,8e-05]
[1744770106103,0.0597062,83751.0,83748.0,0.0597074]
[1744770106402,0.2148139,83750.0,83749.0,0.1194139]
[1744770107901,0.2178139,83750.0,83749.0,0.1194139]
[1744770108502,0.0597076,83749.0,83746.0,0.0001791]
[1744770108811,0.1194339,83736.0,83735.0,0.1195411]
[1744770108998,0.4802339,83736.0,83735.0,0.1195411]
[1744770109201,0.1194382,83733.0,83732.0,0.1791551]
[1744770109506,0.1194382,83733.0,83732.0,0.2423551]
[1744770109707,0.1511382,83733.0,83732.0,0.2423551]
[1744770109910,0.1840382,83733.0,83732.0,0.1229184]
[1744770110509,0.1840382,83733.0,83732.0,0.1249184]
[1744770110811,0.1840382,83733.0,83732.0,0.1249984]
[1744770111109,0.1840382,83733.0,83732.0,0.0947984]
[1744770111308,0.1840382,83733.0,83732.0,0.0977984]
[1744770111610,0.1840382,83733.0,83732.0,0.0977184]
[1744770111811,0.1840382,83733.0,83732.0,0.0647984]
[1744770112911,0.1840382,83733.0,83732.0,0.0966984]
[1744770113209,0.1511382,83733.0,83732.0,0.1266984]
[1744770113905,0.0597109,83744.0,83740.0,0.1194267]
[1744770114206,0.1196044,83741.0,83740.0,0.1194267]
[1744770115209,0.1196044,83741.0,83740.0,0.1204267]
[1744770118806,0.1196044,83741.0,83740.0,0.001]
[1744770119311,0.1196044,83741.0,83740.0,0.00108]
[1744770121116,0.1194382,83732.0,83731.0,0.12457436]
[1744770121413,0.4802382,83732.0,83731.0,0.12457436]
[1744770122014,0.5432382,83732.0,83731.0,0.12457436]
[1744770122311,0.5432382,83732.0,83731.0,0.12465436]
[1744770122512,0.5432382,83732.0,83731.0,0.12665436]
[1744770122909,0.5432382,83732.0,83731.0,0.12965436]
[1744770123210,0.1824382,83732.0,83731.0,0.12965436]
[1744770123507,0.0001791,83741.0,83740.0,0.1194267]
[1744770123715,0.1196044,83741.0,83740.0,0.1194267]
[1744770123909,0.1196044,83741.0,83740.0,0.1835267]
[1744770124312,0.0001791,83741.0,83740.0,0.1935267]
[1744770125715,0.0001791,83741.0,83740.0,0.1945267]
[1744770127614,0.1196044,83741.0,83740.0,0.1845267]
[1744770127813,0.1196044,83741.0,83740.0,0.1537067]
[1744770128010,0.1505044,83741.0,83740.0,0.1205067]
[1744770128418,0.0001791,83741.0,83740.0,0.1205067]
[1744770129109,0.0001791,83741.0,83740.0,0.1521067]
[1744770129505,0.0001791,83741.0,83740.0,0.1621067]
[1744770136521,0.0001791,83741.0,83740.0,0.1521067]
[1744770144526,0.0001791,83741.0,83740.0,0.1621067]
[1744770149416,0.0302791,83741.0,83740.0,0.1521067]
[1744770154221,0.0625791,83741.0,83740.0,0.1521067]
[1744770157626,0.0625791,83741.0,83740.0,0.1205067]
[1744770158922,0.1820044,83741.0,83740.0,0.1205067]
[1744770159130,0.1820044,83741.0,83740.0,0.1204267]
[1744770159339,0.1820044,83741.0,83740.0,0.1205067]
[1744770162137,0.1820044,83741.0,83740.0,0.00108]
[1744770162341,0.1820044,83741.0,83740.0,0.1205067]
[1744770162739,0.1820044,83741.0,83740.0,0.1204267]
[1744770162942,0.1820044,83741.0,83740.0,0.1205067]
[1744770164037,0.19383888,83741.0,83740.0,0.1205067]
[1744770164941,0.19383888,83741.0,83740.0,0.00108]
[1744770165244,0.1194382,83732.0,83731.0,0.00513546]
[1744770165537,0.1194439,83728.0,83727.0,0.0001458]
[1744770165729,0.1791928,83718.0,83717.0,0.1194525]
[1744770166634,0.2389232,83718.0,83717.0,0.1194525]
[1744770166939,0.3027232,83718.0,83717.0,0.1235325]
[1744770168141,0.3027232,83718.0,83717.0,0.1234525]
[1744770168441,0.3027232,83718.0,83717.0,0.1235325]
[1744770168635,0.3027232,83718.0,83717.0,0.0128551]
[1744770168941,0.3027232,83718.0,83717.0,0.0129351]
[1744770169128,0.3027232,83718.0,83717.0,0.0158551]
[1744770169331,0.3027232,83718.0,83717.0,0.0159351]
[1744770169734,0.1194667,83712.0,83711.0,0.000108]
[1744770169937,0.4802667,83712.0,83711.0,0.1195761]
[1744770170137,0.4802667,83712.0,83711.0,0.1194681]
[1744770170337,0.4802667,83712.0,83711.0,0.1195481]
[1744770170537,0.5435667,83712.0,83711.0,0.1195481]
[1744770171742,0.5455667,83712.0,83711.0,0.1195481]
[1744770171944,0.4261,83712.0,83711.0,0.12853531]
[1744770172244,0.5455667,83712.0,83711.0,0.12853531]
[1744770172934,0.5455667,83712.0,83711.0,0.15913531]
[1744770173136,0.0653,83712.0,83711.0,0.15913531]
[1744770174539,0.1847667,83712.0,83711.0,0.12853531]
[1744770174943,0.0653,83712.0,83711.0,0.12853531]
[1744770175241,0.0324,83712.0,83711.0,0.12853531]
[1744770175641,0.0324,83712.0,83711.0,0.15913531]
[1744770183139,0.002,83712.0,83711.0,0.15913531]
[1744770183340,0.0001791,83720.0,83713.0,0.0597323]
[1744770183550,0.0001791,83720.0,83719.0,0.4802567]
[1744770183752,0.0802,83736.0,83735.0,0.1194339]
[1744770183947,0.0325,83737.0,83736.0,0.1194325]
[1744770184649,0.0802,83743.0,83737.0,0.119431]
[1744770184945,0.0325,83742.0,83737.0,0.119431]
[1744770185150,0.0641,83742.0,83737.0,0.119431]
[1744770185551,0.0641,83742.0,83737.0,0.180831]
[1744770185748,0.1194254,83741.0,83737.0,0.180831]
[1744770186046,0.3658,83738.0,83737.0,0.180831]
[1744770187549,0.3768,83738.0,83737.0,0.181831]
[1744770187947,0.3768,83738.0,83737.0,0.151231]
[1744770188147,0.3768,83738.0,83737.0,0.120511]
[1744770189042,0.4388,83738.0,83737.0,0.120511]
[1744770189245,0.4388,83738.0,83737.0,0.120431]
[1744770189552,0.4388,83738.0,83737.0,0.120511]
[1744770189744,0.5582296,83738.0,83737.0,0.120511]
[1744770191653,0.5582296,83738.0,83737.0,0.00108]
[1744770191953,0.5582296,83738.0,83737.0,0.120511]
[1744770192246,0.5582296,83738.0,83737.0,0.120431]
[1744770192550,0.5582296,83738.0,83737.0,0.120511]
[1744770195348,0.5582296,83738.0,83737.0,0.00108]
[1744770196861,0.5582296,83738.0,83737.0,0.120511]
[1744770197240,0.5582296,83738.0,83737.0,0.00108]
[1744770200252,0.119441,83730.0,83729.0,0.0001791]
[1744770200443,0.480241,83730.0,83729.0,0.0001791]
[1744770200748,0.1791822,83722.0,83721.0,0.1194535]
[1744770200942,0.1194553,83720.0,83719.0,0.0597276]
[1744770201350,0.1194581,83718.0,83717.0,0.000108]
[1744770201553,0.1194581,83718.0,83717.0,0.1195676]
[1744770201864,0.1194581,83718.0,83717.0,0.1195396]
[1744770202156,0.1497581,83718.0,83717.0,0.1195396]
[1744770203651,0.1497581,83718.0,83717.0,8e-05]
[1744770203851,0.1547581,83718.0,83717.0,0.1195396]
[1744770204448,0.1557581,83718.0,83717.0,0.1195396]
[1744770204648,0.0363,83718.0,83717.0,0.1195396]
[1744770204854,0.006,83718.0,83717.0,0.1195396]
[1744770205054,0.006,83718.0,83717.0,0.1838396]
[1744770221370,0.0001791,83726.0,83725.0,0.1194481]
[1744770221561,0.0001791,83726.0,83725.0,0.2894481]
[1744770221766,0.0001791,83726.0,83725.0,0.3225481]
[1744770221962,0.0001791,83726.0,83725.0,0.3555481]
[1744770223071,0.0101791,83726.0,83725.0,0.3565481]
[1744770223572,0.0101791,83726.0,83725.0,0.36843189]
[1744770226177,0.0101791,83726.0,83725.0,0.19843189]
[1744770229685,0.0101791,83726.0,83725.0,0.1865481]
[1744770231887,0.0101791,83726.0,83725.0,0.1534481]
[1744770233984,0.0101791,83726.0,83725.0,0.1941481]
[1744770235582,0.0101791,83726.0,83725.0,0.1841481]
[1744770237083,0.0328,83733.0,83732.0,0.1194382]
[1744770237388,0.0596965,83764.0,83746.0,0.1194182]
[1744770237389,0.01168843,83754.0,83746.0,0.1194182]
[1744770237583,0.01168843,83754.0,83753.0,0.1194082]
[1744770237781,0.01168843,83754.0,83753.0,0.4802082]
[1744770237976,0.005,83760.0,83759.0,0.1193997]
[1744770238581,0.3608,83778.0,83777.0,0.119374]
[1744770238885,0.1193651,83784.0,83783.0,0.119364]
[1744770239484,0.0331,83785.0,83784.0,0.119364]
[1744770240283,0.0664,83785.0,83784.0,0.119364]
[1744770240587,0.1887626,83785.0,83784.0,0.119364]
[1744770240786,0.119364,83784.0,83783.0,0.00883766]
[1744770240981,0.119364,83784.0,83783.0,0.1193655]
[1744770241181,0.0333,83784.0,83783.0,0.1194455]
[1744770242283,0.0403,83784.0,83783.0,0.1194455]
[1744770242681,0.159664,83784.0,83783.0,0.1194455]
[1744770242884,0.163664,83784.0,83783.0,0.1194455]
[1744770243083,0.0443,83784.0,83783.0,0.12847783]
[1744770243589,0.005,83786.0,83785.0,0.1193626]
[1744770243792,0.0001791,83792.0,83791.0,0.1193541]
[1744770244277,0.032,83805.0,83795.0,0.1193484]
[1744770244481,0.00026573,83797.0,83795.0,0.1293484]
[1744770244783,0.42180957,83806.0,83795.0,0.1293484]
[1744770244984,0.39208,83796.0,83795.0,0.1193484]
[1744770245188,0.392,83796.0,83795.0,0.1193484]
[1744770245382,0.5113469,83796.0,83795.0,0.1193484]
[1744770245581,0.5114269,83796.0,83795.0,0.1193484]
[1744770245983,0.5134269,83796.0,83795.0,0.1193484]
[1744770246388,0.5164269,83796.0,83795.0,0.1193484]
[1744770248883,0.1790409,83788.0,83787.0,0.1193549]
[1744770249085,0.0596797,83788.0,83787.0,0.1193598]
[1744770249994,0.031,83789.0,83788.0,0.1193583]
[1744770250781,0.119364,83785.0,83784.0,0.1193612]
[1744770251093,0.119364,83785.0,83784.0,0.1790426]
[1744770251894,0.1790438,83786.0,83785.0,0.1193626]
[1744770252096,0.454479,83789.0,83788.0,0.1193583]
[1744770252394,0.3948,83789.0,83788.0,0.1193583]
[1744770252691,0.3918,83789.0,83788.0,0.1193583]
[1744770252992,0.00010801,83800.0,83795.0,0.1193484]
[1744770253190,0.4801469,83796.0,83795.0,0.1193484]
[1744770253389,0.4802269,83796.0,83795.0,0.1193484]
[1744770254792,0.36088,83796.0,83795.0,0.1193484]
[1744770254988,0.36388,83796.0,83795.0,0.1193484]
[1744770255193,0.4832269,83796.0,83795.0,0.1193484]
[1744770255794,0.36388,83796.0,83795.0,0.1193484]
[1744770256001,0.36588,83796.0,83795.0,0.1193484]
[1744770256291,0.36588,83796.0,83795.0,0.1494484]
[1744770258797,0.4852269,83796.0,83795.0,0.1193484]
[1744770259102,0.5182269,83796.0,83795.0,0.1193484]
[1744770262288,0.36588,83796.0,83795.0,0.1193484]
[1744770262792,0.3658,83796.0,83795.0,0.1193484]
[1744770262990,0.4852269,83796.0,83795.0,0.1826484]
[1744770263392,0.36588,83796.0,83795.0,0.1826484]
[1744770265002,0.3658,83796.0,83795.0,0.1826484]
[1744770265499,0.36797107,83796.0,83795.0,0.1519484]
[1744770266094,0.36797107,83796.0,83795.0,0.1849484]
[1744770270100,0.3658,83796.0,83795.0,0.1849484]
[1744770270301,0.36797107,83796.0,83795.0,0.1849484]
[1744770274895,0.3658,83796.0,83795.0,0.1849484]
[1744770275297,0.00717107,83796.0,83795.0,0.1849484]
[1744770277896,0.00717107,83796.0,83795.0,0.1949484]
[1744770278101,0.00725107,83796.0,83795.0,0.1949484]
[1744770279907,0.005,83796.0,83795.0,0.5557484]
[1744770280296,0.00717107,83796.0,83795.0,0.5557484]
[1744770285009,0.005,83796.0,83795.0,0.5557484]
[1744770285509,0.005,83796.0,83795.0,0.1949484]
[1744770285709,0.005,83796.0,83795.0,0.5557484]
[1744770286009,0.00717107,83796.0,83795.0,0.5557484]
[1744770289911,0.005,83796.0,83795.0,0.5557484]
[1744770290502,0.00717107,83796.0,83795.0,0.5557484]
[1744770293599,0.00717107,83796.0,83795.0,0.4801484]
[1744770294606,0.00725107,83796.0,83795.0,0.1193484]
[1744770295007,0.005,83796.0,83795.0,0.1193484]
[1744770295410,0.005,83796.0,83795.0,0.1499484]
[1744770295614,0.00717107,83796.0,83795.0,0.1499484]
[1744770297109,0.00717107,83796.0,83795.0,0.1811484]
[1744770297511,0.00717107,83796.0,83795.0,0.2117484]
[1744770297815,0.00725107,83796.0,83795.0,0.2117484]
[1744770299510,0.00725107,83796.0,83795.0,0.3717484]
[1744770299716,0.0326,83799.0,83798.0,0.1193441]
[1744770299916,0.03270801,83799.0,83798.0,0.1193441]
[1744770300114,0.0326,83799.0,83798.0,0.1828441]
[1744770301023,0.0356,83799.0,83798.0,0.1193441]
[1744770301519,0.0386,83799.0,83798.0,0.1193441]
[1744770302524,0.1579427,83799.0,83798.0,0.1193441]
[1744770302823,0.1193512,83793.0,83792.0,0.2386979]
[1744770303017,0.1193541,83791.0,83790.0,0.1790316]
[1744770303215,0.1193541,83791.0,83790.0,0.0596774]